bitfinex-derivatives/quotes_SOLF0:USTF0_20250106
["timestamp","ask_amount","ask_price","bid_price","bid_amount"]
[1736134961054,7.23926376,216.36,216.34,4.9719]
[1736134961751,7.23926376,216.36,216.34,2.3119]
[1736134962362,7.23926376,216.36,216.29,2.66]
[1736134962562,7.23926376,216.34,216.29,2.66]
[1736134962756,7.23926376,216.32,216.19,4.2424]
[1736134962963,7.23926376,216.3,216.23,7.23926376]
[1736134963358,7.23926376,216.32,216.3,2.3124]
[1736134967160,4.3152,216.41,216.28,2.66]
[1736134967366,7.23926376,216.34,216.28,2.66]
[1736134967769,7.23926376,216.34,216.29,2.3124]
[1736134967968,7.23926376,216.34,216.28,2.66]
[1736134968968,7.23926376,216.34,216.31,2.3122]
[1736134969974,7.23926376,216.32,216.28,2.66]
[1736134970168,7.23926376,216.3,216.28,4.9725]
[1736134971869,7.23926376,216.3,216.28,2.3125]
[1736134973764,7.23926376,216.3,216.29,2.3125]
[1736134975070,4.3152,216.41,216.32,2.3121]
[1736134975268,7.23926376,216.33,216.32,2.3121]
[1736134976873,2.3116,216.38,216.33,2.312]
[1736134977073,7.23926376,216.34,216.33,2.312]
[1736134980773,7.23926376,216.34,216.31,2.3122]
[1736134981079,7.23926376,216.32,216.31,2.3122]
[1736134983075,7.23926376,216.32,216.3,2.3123]
[1736134984773,7.23926376,216.32,216.31,2.3123]
[1736134992289,7.23926376,216.32,216.3,2.3124]
[1736134995791,3.46916505,216.4,216.3,2.3124]
[1736134995986,7.23926376,216.34,216.3,2.3124]
[1736134996383,7.23926376,216.31,216.2,6.40533272]
[1736134996588,7.23926376,216.23,216.2,6.40533272]
[1736134996984,7.23926376,216.23,216.2,8.71873272]
[1736134997493,7.23926376,216.23,216.2,2.3134]
[1736134998588,7.23926376,216.21,216.17,2.3137]
[1736134998891,7.23926376,216.19,216.15,5.5469]
[1736135000995,7.23926376,216.19,216.15,2.8869]
[1736135001183,7.23926376,216.19,216.15,5.5469]
[1736135001388,7.23926376,216.19,216.17,2.3137]
[1736135009700,7.23926376,216.19,216.15,2.3139]
[1736135009901,7.23926376,216.17,216.12,2.66]
[1736135011302,2.3133,216.21,216.12,2.66]
[1736135011510,2.313,216.24,216.16,7.23926376]
[1736135011701,7.23926376,216.22,216.17,2.66]
[1736135012498,1.5187,216.28,216.17,2.66]
[1736135012499,7.23926376,216.24,216.21,2.3133]
[1736135012697,7.23926376,216.24,216.17,2.66]
[1736135013098,7.23926376,216.24,216.21,2.3133]
[1736135014699,1.5187,216.28,216.2,7.23926376]
[1736135014899,17.47190776,216.4,216.22,7.23926376]
[1736135015102,17.47190776,216.4,216.23,2.66]
[1736135015103,7.23926376,216.28,216.23,2.66]
[1736135016402,7.23926376,216.29,216.23,2.66]
[1736135016797,4.1145,216.35,216.23,2.66]
[1736135016798,7.23926376,216.27,216.23,2.66]
[1736135018003,7.23926376,216.27,216.24,2.3129]
[1736135019702,7.23926376,216.27,216.23,4.9731]
[1736135020603,7.23926376,216.25,216.23,4.9731]
[1736135020804,2.3126,216.28,216.23,2.3131]
[1736135021004,7.23926376,216.24,216.23,2.3131]
[1736135024114,7.23926376,216.24,216.21,2.66]
[1736135024605,2.3128,216.26,216.21,2.66]
[1736135024811,7.23926376,216.26,216.25,2.3129]
[1736135027712,7.23926376,216.26,216.21,2.66]
[1736135027909,1.4867,216.33,216.18,1.398]
[1736135027910,7.23926376,216.24,216.18,1.398]
[1736135028112,7.23926376,216.24,216.19,2.66]
[1736135029709,7.23926376,216.24,216.22,2.3131]
[1736135034521,7.23926376,216.24,216.21,2.3133]
[1736135034715,7.23926376,216.22,216.21,2.3133]
[1736135041024,7.23926376,216.24,216.21,2.3133]
[1736135057626,7.23926376,216.24,216.2,2.66]
[1736135057829,7.23926376,216.24,216.22,2.3132]
[1736135058029,2.3127,216.28,216.2,2.66]
[1736135058234,7.23926376,216.27,216.2,2.66]
[1736135059430,7.23926376,216.27,216.23,2.3131]
[1736135060138,7.23926376,216.25,216.23,2.3131]
[1736135067638,7.23926376,216.25,216.22,2.3132]
[1736135067836,7.23926376,216.23,216.12,2.8676]
[1736135068035,6.05268324,216.32,216.13,2.66]
[1736135068036,7.23926376,216.19,216.13,2.66]
[1736135068236,7.23926376,216.19,216.14,2.66]
[1736135068638,7.23926376,216.19,216.15,2.3139]
[1736135068839,7.23926376,216.19,216.14,2.66]
[1736135069538,7.23926376,216.19,216.16,2.3138]
[1736135075852,9.55306376,216.17,216.13,2.3141]
[1736135076049,7.23926376,216.15,216.13,2.3141]
[1736135076351,7.23926376,216.15,216.11,66.46178205]
[1736135077347,7.23926376,216.15,216.11,66.13618205]
[1736135077552,7.23926376,216.15,216.11,68.77618205]
[1736135077747,7.23926376,216.15,216.11,66.13618205]
[1736135078353,7.23926376,216.15,216.12,2.3143]
[1736135078749,7.23926376,216.15,216.11,63.82178205]
[1736135078949,7.23926376,216.15,216.12,2.3142]
[1736135080253,2.3134,216.2,216.15,2.3139]
[1736135080549,2.64,216.24,216.12,7.23926376]
[1736135080853,7.23926376,216.19,216.12,7.23926376]
[1736135081048,7.23926376,216.19,216.17,2.3137]
[1736135082655,2.3133,216.21,216.17,2.3137]
[1736135082856,7.23926376,216.19,216.17,2.3137]
[1736135083446,2.3133,216.21,216.17,2.3137]
[1736135083650,7.23926376,216.19,216.17,2.3137]
[1736135084459,2.3133,216.21,216.17,2.3137]
[1736135084653,7.23926376,216.19,216.17,2.3137]
[1736135084855,7.23926376,216.19,216.15,2.64]
[1736135085056,2.3133,216.21,216.16,2.3138]
[1736135085359,7.23926376,216.19,216.16,2.3138]
[1736135086958,7.23926376,216.19,216.15,2.64]
[1736135087155,7.23926376,216.19,216.15,4.954]
[1736135087752,7.23926376,216.17,216.15,4.954]
[1736135097462,2.3139,216.16,216.12,2.64]
[1736135097666,7.23926376,216.15,216.11,2.3143]
[1736135097864,7.23926376,216.15,216.11,4.9543]
[1736135098567,9.55326376,216.15,216.11,4.9543]
[1736135099668,9.55326376,216.15,216.11,2.3143]
[1736135100369,7.23926376,216.13,216.07,63.83157965]
[1736135100566,7.23926376,216.13,216.09,2.3145]
[1736135101766,1.4702,216.19,216.08,9.87926376]
[1736135102070,1.4702,216.19,216.1,7.23926376]
[1736135102370,7.23926376,216.17,216.1,7.23926376]
[1736135102961,7.23926376,216.17,216.14,2.3141]
[1736135112976,7.23926376,216.15,216.07,63.83157965]
[1736135113283,7.23926376,216.15,216.08,2.64]
[1736135113774,7.23926376,216.15,216.1,2.3144]
[1736135113775,2.3141,216.14,216.1,2.3144]
[1736135117680,7.23926376,216.13,216.1,2.3144]
[1736135117973,9.55346376,216.13,216.09,2.64]
[1736135118876,9.55346376,216.13,216.08,4.9546]
[1736135119877,2.3143,216.12,216.08,4.9546]
[1736135120581,7.23926376,216.11,216.08,4.9546]
[1736135121478,7.23926376,216.11,216.08,2.64]
[1736135124285,7.23926376,216.11,216.08,4.9547]
[1736135125187,7.23926376,216.11,216.08,2.3147]
[1736135129090,7.23926376,216.11,216.09,2.3146]
[1736135134905,7.23926376,216.14,216.11,2.3144]
[1736135135096,7.23926376,216.14,216.07,73.71084341]
[1736135135599,7.23926376,216.14,216.11,2.3144]
[1736135139402,7.23926376,216.14,216.09,2.3145]
[1736135140300,9.55336376,216.14,216.09,2.3145]
[1736135143312,9.55336376,216.14,216.07,73.71084341]
[1736135143512,9.55336376,216.14,216.1,2.3145]
[1736135147111,7.23926376,216.12,216.1,2.3145]
[1736135147702,9.55356376,216.12,216.06,2.64]
[1736135147908,1.4702,216.19,216.06,2.64]
[1736135147909,7.23926376,216.1,216.06,2.64]
[1736135148111,1.4702,216.19,216.05,2.64]
[1736135148112,7.23926376,216.08,216.05,2.64]
[1736135149512,7.23926376,216.08,216.05,4.955]
[1736135150613,7.23926376,216.08,216.05,2.315]
[1736135152309,2.3146,216.1,216.04,2.64]
[1736135152510,7.23926376,216.08,216.06,2.3149]
[1736135154318,9.55396376,216.08,216.04,2.64]
[1736135154513,7.23926376,216.05,216.04,2.64]
[1736135155016,7.23926376,216.05,216.04,4.9551]
[1736135155219,7.23926376,216.05,215.99,2.8921]
[1736135155414,7.23926376,216.05,216.02,2.3153]
[1736135156214,1.4787,216.12,216.01,2.64]
[1736135156421,7.23926376,216.06,216.01,2.64]
[1736135158118,7.23926376,216.06,216.04,2.3151]
[1736135159912,7.23926376,216.06,216.0,3.18394249]
[1736135160215,7.23926376,216.03,216.0,3.18394249]
[1736135160620,7.23926376,216.01,215.99,2.3156]
[1736135160822,2.3149,216.07,215.98,2.64]
[1736135161120,2.3149,216.07,216.0,2.3156]
[1736135161121,7.23926376,216.05,216.0,2.3156]
[1736135161316,7.23926376,216.03,215.98,2.64]
[1736135161919,7.23926376,216.03,215.96,7.23926376]
[1736135162221,7.23926376,216.03,215.97,2.64]
[1736135162523,7.23926376,216.03,216.0,2.3155]
[1736135163418,7.23926376,216.03,215.97,2.64]
[1736135163618,7.23926376,216.03,216.01,2.3155]
[1736135164619,7.23926376,216.03,215.96,7.23926376]
[1736135164820,7.23926376,216.03,215.99,2.3156]
[1736135167021,7.23926376,216.03,216.0,2.3156]
[1736135169528,7.23926376,216.01,215.92,2.9346]
[1736135169725,7.23926376,216.01,215.98,2.3158]
[1736135169930,7.23926376,215.99,215.94,2.64]
[1736135171316,7.23926376,215.99,215.98,2.3158]
[1736135171523,4.348,216.05,215.94,2.64]
[1736135171524,4.348,216.05,215.95,7.23926376]
[1736135171826,7.23926376,216.02,215.95,7.23926376]
[1736135172424,7.23926376,216.02,216.01,2.3154]
[1736135172620,4.348,216.05,215.97,7.23926376]
[1736135172830,7.23926376,216.04,215.98,2.64]
[1736135173130,7.23926376,216.04,216.03,2.3153]
[1736135173328,206.6503882,216.21,215.99,7.23926376]
[1736135173524,1.4711,216.13,215.99,7.23926376]
[1736135173828,1.4711,216.13,215.98,2.64]
[1736135173829,1.4711,216.13,216.03,7.23926376]
[1736135174128,8.71036376,216.13,216.05,7.23926376]
[1736135174333,8.71036376,216.13,216.06,2.64]
[1736135175024,8.71036376,216.13,216.08,2.3147]
[1736135175326,8.71036376,216.13,216.06,2.64]
[1736135175831,8.71036376,216.13,216.09,2.3146]
[1736135176019,8.71036376,216.13,216.06,2.64]
[1736135176423,7.23926376,216.11,216.06,2.64]
[1736135177224,7.23926376,216.11,216.07,2.3147]
[1736135178029,7.23926376,216.11,216.08,2.3147]
[1736135179423,2.8588,216.15,216.06,2.64]
[1736135179626,7.23926376,216.14,216.1,2.3145]
[1736135180028,5.1728,216.15,216.1,2.3145]
[1736135180225,7.23926376,216.13,216.1,2.3145]
[1736135180430,5.1728,216.15,216.1,2.3145]
[1736135180728,7.23926376,216.13,216.1,2.3145]
[1736135181726,2.3138,216.17,216.11,2.3143]
[1736135181927,7.23926376,216.13,216.07,7.23926376]
[1736135182624,7.23926376,216.13,216.12,2.3143]
[1736135183629,1.5241,216.18,216.12,2.3143]
[1736135183826,7.23926376,216.13,216.12,2.3143]
[1736135186925,7.23926376,216.13,216.11,2.3144]
[1736135199335,7.23926376,216.13,216.1,2.64]
[1736135199535,7.23926376,216.13,216.1,4.9545]
[1736135201439,1.5241,216.18,216.1,4.9545]
[1736135201440,2.3137,216.18,216.1,2.64]
[1736135201639,7.23926376,216.18,216.11,7.23926376]
[1736135202233,7.23926376,216.18,216.14,2.314]
[1736135202837,7.23926376,216.18,216.14,4.954]
[1736135203237,9.55296376,216.18,216.14,4.954]
[1736135206135,4.1414,216.25,216.14,2.64]
[1736135206136,7.23926376,216.16,216.14,2.64]
[1736135206335,7.23926376,216.16,216.1,2.64]
[1736135206536,7.23926376,216.12,216.1,2.64]
[1736135207428,7.23926376,216.12,216.1,4.9545]
[1736135207636,7.23926376,216.12,216.1,2.3145]
[1736135210241,7.23926376,216.14,216.11,2.3144]
[1736135211444,7.23926376,216.16,216.12,2.3143]
[1736135212446,9.55316376,216.16,216.12,2.3143]
[1736135212647,9.55316376,216.16,216.11,2.3144]
[1736135213443,7.23926376,216.16,216.12,2.3143]
[1736135216746,2.314,216.15,216.1,2.3144]
[1736135216946,7.23926376,216.14,216.1,2.3144]
[1736135218451,7.23926376,216.14,216.11,2.3144]
[1736135220858,7.23926376,216.14,216.09,2.3145]
[1736135221061,7.23926376,216.14,216.08,2.64]
[1736135221354,7.23926376,216.14,216.11,2.3144]
[1736135221750,7.23926376,216.12,216.07,2.64]
[1736135221951,7.23926376,216.1,216.06,2.64]
[1736135222550,7.23926376,216.1,216.06,4.9549]
[1736135225163,7.23926376,216.1,216.06,2.3149]
[1736135226655,7.23926376,216.1,216.03,63.83921829]
[1736135226960,7.23926376,216.08,216.05,2.315]
[1736135228556,7.23926376,216.08,216.04,2.64]
[1736135228755,7.23926376,216.08,216.04,4.9551]
[1736135230958,2.3146,216.09,216.04,4.9551]
[1736135233455,2.3146,216.09,216.05,2.315]
[1736135238170,7.23926376,216.09,216.06,2.3149]
[1736135238469,7.23926376,216.11,216.04,9.87926376]
[1736135238662,7.23926376,216.13,216.06,7.23926376]
[1736135238863,9.55356376,216.13,216.08,2.3147]
[1736135239065,7.23926376,216.11,216.08,2.3147]
[1736135239267,9.55366376,216.11,216.07,2.3148]
[1736135240665,2.3144,216.11,216.07,2.3148]
[1736135240873,7.23926376,216.09,216.07,2.3148]
[1736135244870,9.55366376,216.11,216.07,2.3148]
[1736135245374,7.23926376,216.11,216.04,9.87926376]
[1736135245969,7.23926376,216.11,216.08,2.3146]
[1736135247569,9.55366376,216.11,216.06,2.3148]
[1736135247975,9.55366376,216.11,216.04,9.87926376]
[1736135249475,9.55366376,216.11,216.07,2.3148]
[1736135250175,7.23926376,216.09,216.07,2.3148]
[1736135250375,7.23926376,216.09,216.04,2.64]
[1736135250684,7.23926376,216.09,216.06,2.3149]
[1736135251582,2.3146,216.1,216.06,2.3149]
[1736135251782,9.55386376,216.1,216.06,2.3149]
[1736135253480,7.23926376,216.1,216.04,2.64]
[1736135253677,7.23926376,216.08,216.04,2.64]
[1736135254572,9.55406376,216.08,216.04,4.9551]
[1736135267491,9.55416376,216.06,216.02,2.3154]
[1736135267684,9.55416376,216.06,216.02,4.9554]
[1736135267990,9.55416376,216.06,216.02,2.3154]
[1736135272291,2.3149,216.07,216.0,9.87926376]
[1736135273394,2.3149,216.07,216.02,2.3154]
[1736135280301,4.3612,216.11,216.0,2.64]
[1736135280302,7.23926376,216.06,216.0,2.64]
[1736135282097,7.23926376,216.04,216.0,2.64]
[1736135282396,9.55446376,216.04,215.99,2.3157]
[1736135282794,2.3153,216.03,215.99,2.3157]
[1736135284299,2.3153,216.03,215.98,4.9558]
[1736135284601,7.23926376,216.02,215.98,2.3158]
[1736135285291,7.23926376,216.02,215.96,9.87926376]
[1736135285292,9.55486376,216.0,215.93,2.3163]
[1736135285493,9.55486376,216.0,215.94,2.64]
[1736135286092,2.3157,215.99,215.95,2.316]
[1736135286494,7.23926376,215.98,215.95,2.316]
[1736135288597,7.23926376,215.98,215.93,2.3162]
[1736135288901,7.23926376,215.96,215.93,2.3162]
[1736135292205,7.23926376,215.96,215.88,3.0022]
[1736135292408,9.55536376,215.96,215.91,2.3164]
[1736135297209,7.23926376,215.92,215.9,2.3166]
[1736135298208,7.23926376,215.92,215.89,2.3167]
[1736135298807,7.23926376,215.9,215.82,2.8766]
[1736135299013,7.23926376,215.9,215.83,9.87926376]
[1736135299615,7.23926376,215.9,215.86,2.317]
[1736135301015,7.23926376,215.88,215.85,2.3172]
[1736135301217,7.23926376,215.9,215.84,7.23926376]
[1736135301605,7.23926376,215.9,215.82,11.26116376]
[1736135302013,7.23926376,215.9,215.86,2.317]
[1736135302310,7.23926376,215.9,215.84,7.23926376]
[1736135302720,7.23926376,215.9,215.87,2.3169]
[1736135303120,7.23926376,215.9,215.84,7.23926376]
[1736135304418,7.23926376,215.9,215.87,2.317]
[1736135307124,7.23926376,215.9,215.85,2.3171]
[1736135307326,7.23926376,215.86,215.76,3.18748061]
[1736135307520,7.23926376,215.84,215.76,7.23926376]
[1736135307833,7.23926376,215.84,215.74,2.64]
[1736135307834,7.23926376,215.82,215.74,9.87926376]
[1736135308129,7.23926376,215.8,215.74,2.64]
[1736135308330,7.23926376,215.8,215.71,1.4875]
[1736135308331,7.23926376,215.8,215.75,2.3182]
[1736135309828,7.23926376,215.8,215.76,2.3181]
[1736135312237,7.23926376,215.8,215.77,2.318]
[1736135313237,7.23926376,215.8,215.73,7.23926376]
[1736135313533,7.23926376,215.8,215.78,2.3179]
[1736135314330,2.3175,215.83,215.78,2.3179]
[1736135314534,7.23926376,215.8,215.79,2.3178]
[1736135315833,7.23926376,215.8,215.78,2.3179]
[1736135321736,7.23926376,215.8,215.76,2.318]
[1736135321932,7.23926376,215.78,215.76,2.318]
[1736135322236,7.23926376,215.78,215.76,2.3181]
[1736135322530,7.23926376,215.78,215.73,7.23926376]
[1736135322736,7.23926376,215.78,215.72,2.64]
[1736135323234,7.23926376,215.78,215.74,2.3183]
[1736135323436,7.23926376,215.76,215.74,2.3183]
[1736135325436,7.23926376,215.76,215.69,2.64]
[1736135325634,7.23926376,215.74,215.69,2.64]
[1736135325835,7.23926376,215.74,215.67,7.23926376]
[1736135326038,7.23926376,215.74,215.67,9.87926376]
[1736135326738,7.23926376,215.74,215.69,2.3188]
[1736135326939,7.23926376,215.74,215.67,9.87926376]
[1736135327237,7.23926376,215.74,215.68,4.062]
[1736135327632,7.23926376,215.74,215.72,2.3185]
[1736135334340,2.3188,215.71,215.66,2.3192]
[1736135334540,7.23926376,215.67,215.66,2.3192]
[1736135334942,7.23926376,215.67,215.57,22.12792251]
[1736135335141,7.23926376,215.64,215.6,2.64]
[1736135335738,7.23926376,215.64,215.62,2.3197]
[1736135337240,7.23926376,215.64,215.6,2.3198]
[1736135337442,7.23926376,215.61,215.6,2.3198]
[1736135339249,2.3193,215.66,215.55,2.64]
[1736135339446,2.64,215.67,215.63,2.3195]
[1736135339642,7.23926376,215.64,215.63,2.3195]
[1736135340348,2.64,215.7,215.66,2.3192]
[1736135340544,7.23926376,215.67,215.66,2.3192]
[1736135344643,1.4864,215.73,215.7,2.3188]
[1736135344846,7.23926376,215.71,215.64,7.23926376]
[1736135345050,7.23926376,215.69,215.61,5.6616]
[1736135345243,7.23926376,215.69,215.62,7.23926376]
[1736135345647,7.23926376,215.67,215.61,5.6616]
[1736135347054,1.4864,215.73,215.61,5.6616]
[1736135347254,1.4864,215.73,215.63,7.23926376]
[1736135347460,7.23926376,215.7,215.63,7.23926376]
[1736135347945,7.23926376,215.72,215.65,7.23926376]
[1736135348145,2.3182,215.76,215.65,7.23926376]
[1736135348146,2.64,215.77,215.65,7.23926376]
[1736135348350,7.23926376,215.75,215.67,7.23926376]
[1736135348557,7.23926376,215.75,215.73,2.3185]
[1736135348953,7.23926376,215.75,215.68,2.64]
[1736135349155,7.23926376,215.72,215.71,2.3186]
[1736135351659,7.23926376,215.74,215.73,2.3185]
[1736135354159,7.23926376,215.74,215.71,2.3186]
[1736135354360,7.23926376,215.72,215.71,2.3186]
[1736135357264,7.23926376,215.74,215.72,2.3185]
[1736135357456,7.23926376,215.74,215.68,2.64]
[1736135358362,7.23926376,215.74,215.73,2.3185]
[1736135359457,7.23926376,215.74,215.68,2.64]
[1736135359661,7.23926376,215.74,215.72,2.3186]
[1736135359966,7.23926376,215.73,215.67,2.64]
[1736135360158,7.23926376,215.7,215.67,2.64]
[1736135360761,7.23926376,215.68,215.67,4.9591]
[1736135362567,7.23926376,215.68,215.67,2.3191]
[1736135362761,7.23926376,215.68,215.62,2.64]
[1736135363067,7.23926376,215.63,215.59,2.64]
[1736135363458,7.23926376,215.63,215.58,66.60958845]
[1736135364266,7.23926376,215.61,215.58,63.96958845]
[1736135364570,7.23926376,215.61,215.56,2.64]
[1736135365471,7.23926376,215.61,215.59,2.32]
[1736135366471,7.23926376,215.61,215.6,2.3199]
[1736135369169,7.23926376,215.61,215.56,2.64]
[1736135369368,7.23926376,215.61,215.59,2.32]
[1736135370067,7.23926376,215.61,215.57,2.3201]
[1736135370272,7.23926376,215.58,215.57,2.3201]
[1736135376782,7.23926376,215.6,215.54,2.64]
[1736135378176,7.23926376,215.6,215.58,2.32]
[1736135387491,7.23926376,215.6,215.59,2.32]
[1736135388692,7.23926376,215.64,215.61,2.3197]
[1736135388996,7.23926376,215.64,215.6,2.64]
[1736135389491,2.3189,215.69,215.6,2.64]
[1736135389693,7.23926376,215.66,215.6,2.64]
[1736135390393,7.23926376,215.66,215.64,2.3194]
[1736135393792,7.23926376,215.66,215.62,2.3196]
[1736135393793,9.55856376,215.66,215.62,2.3196]
[1736135393995,7.23926376,215.63,215.62,2.3196]
[1736135394990,7.23926376,215.63,215.61,2.3198]
[1736135395194,7.23926376,215.63,215.6,2.64]
[1736135395397,7.23926376,215.61,215.6,2.64]
[1736135395693,7.23926376,215.61,215.53,8.67526376]
[1736135396001,7.23926376,215.59,215.54,2.64]
[1736135397401,7.23926376,215.59,215.57,2.3201]
[1736135397698,7.23926376,215.59,215.54,2.64]
[1736135398500,7.23926376,215.59,215.48,9.2708075]
[1736135398693,7.23926376,215.57,215.53,2.64]
[1736135399897,7.23926376,215.57,215.56,2.3203]
[1736135402303,7.23926376,215.57,215.55,2.3204]
[1736135404202,7.23926376,215.57,215.56,2.3203]
[1736135404402,2.3198,215.62,215.56,2.3203]
[1736135404403,7.23926376,215.59,215.56,2.3203]
[1736135405902,2.64,215.67,215.54,7.23926376]
[1736135406102,2.64,215.67,215.56,7.23926376]
[1736135406306,9.55241571,215.71,215.58,7.23926376]
[1736135406604,7.23926376,215.66,215.59,2.64]
[1736135407506,7.23926376,215.64,215.59,2.64]
[1736135407807,7.23926376,215.64,215.61,2.3197]
[1736135411709,7.23926376,215.64,215.59,2.64]
[1736135411909,7.23926376,215.66,215.59,9.87926376]
[1736135413408,7.23926376,215.66,215.63,2.3195]
[1736135416410,7.23926376,215.64,215.63,2.3195]
[1736135419915,7.23926376,215.64,215.59,2.64]
[1736135420111,7.23926376,215.62,215.58,2.64]
[1736135420510,7.23926376,215.62,215.58,4.96]
[1736135420915,7.23926376,215.62,215.58,2.32]
[1736135422115,7.23926376,215.6,215.58,2.32]
[1736135424108,7.23926376,215.6,215.57,2.64]
[1736135424313,7.23926376,215.6,215.55,2.64]
[1736135425416,7.23926376,215.6,215.57,2.3202]
[1736135426111,7.23926376,215.58,215.57,2.3202]
[1736135426814,7.23926376,215.58,215.54,2.64]
[1736135427015,7.23926376,215.58,215.54,2.3205]
[1736135428912,7.23926376,215.56,215.54,2.3205]
[1736135433322,7.23926376,215.56,215.51,2.3208]
[1736135433618,2.3203,215.57,215.51,2.3208]
[1736135433619,7.23926376,215.54,215.51,2.3208]
[1736135434120,4.2506,215.62,215.54,2.3204]
[1736135434121,2.32,215.6,215.54,2.3204]
[1736135434322,7.23926376,215.57,215.54,2.3204]
[1736135437721,7.23926376,215.61,215.53,7.23926376]
[1736135437922,4.2506,215.62,215.53,7.23926376]
[1736135438217,7.23926376,215.61,215.53,7.23926376]
[1736135439117,2.3195,215.64,215.55,7.23926376]
[1736135439323,7.23926376,215.62,215.56,2.64]
[1736135439621,7.23926376,215.62,215.57,2.3201]
[1736135439815,7.23926376,215.62,215.56,2.64]
[1736135440416,7.23926376,215.62,215.58,2.32]
[1736135442724,2.3195,215.64,215.56,2.64]
[1736135443022,7.23926376,215.63,215.6,2.3198]
[1736135443619,6.12079554,215.69,215.57,7.23926376]
[1736135443821,7.23926376,215.64,215.62,2.3196]
[1736135449923,7.23926376,215.64,215.58,7.23926376]
[1736135450122,7.23926376,215.66,215.63,2.3195]
[1736135452826,2.319,215.68,215.63,2.3195]
[1736135453035,7.23926376,215.68,215.63,2.3195]
[1736135453225,7.23926376,215.68,215.61,2.64]
[1736135454033,7.23926376,215.68,215.62,7.23926376]
[1736135454730,7.23926376,215.68,215.61,2.64]
[1736135454930,7.23926376,215.68,215.61,9.87926376]
[1736135456537,7.23926376,215.68,215.65,2.3192]
[1736135459646,7.23926376,215.68,215.61,9.87926376]
[1736135459946,7.23926376,215.72,215.65,7.23926376]
[1736135460142,7.23926376,215.72,215.66,2.64]
[1736135460346,7.23926376,215.73,215.66,2.64]
[1736135461146,7.23926376,215.73,215.7,2.3188]
[1736135465648,4.3812,215.83,215.74,2.3183]
[1736135465649,2.3178,215.8,215.74,2.3183]
[1736135465940,7.23926376,215.75,215.67,2.64]
[1736135466139,7.23926376,215.72,215.68,2.3189]
[1736135467048,7.23926376,215.72,215.69,2.3188]
[1736135467649,7.23926376,215.72,215.7,2.3188]
[1736135470641,4.3812,215.83,215.67,2.64]
[1736135470642,7.23926376,215.74,215.71,2.3187]
[1736135471252,7.23926376,215.76,215.68,7.23926376]
[1736135471450,2.64,215.82,215.7,7.23926376]
[1736135471752,7.23926376,215.78,215.7,7.23926376]
[1736135472253,7.23926376,215.76,215.7,7.23926376]
[1736135473254,7.23926376,215.76,215.73,2.3184]
[1736135473553,7.23926376,215.74,215.67,9.87926376]
[1736135474251,7.23926376,215.74,215.72,2.3185]
[1736135476249,7.23926376,215.74,215.67,9.87926376]
[1736135476453,7.23926376,215.76,215.69,7.23926376]
[1736135477355,7.23926376,215.76,215.74,2.3184]
[1736135478653,7.23926376,215.76,215.67,2.64]
[1736135478851,7.23926376,215.76,215.72,2.3185]
[1736135479456,7.23926376,215.74,215.71,2.3187]
[1736135479655,7.23926376,215.74,215.68,2.64]
[1736135480354,7.23926376,215.72,215.68,2.64]
[1736135481653,7.23926376,215.72,215.7,2.3188]
[1736135485057,7.23926376,215.72,215.68,2.64]
[1736135485261,7.23926376,215.72,215.71,2.3187]
[1736135487460,7.23926376,215.72,215.68,2.64]
[1736135487663,7.23926376,215.72,215.69,2.3188]
[1736135489363,7.23926376,215.72,215.64,7.23926376]
[1736135489563,7.23926376,215.72,215.7,2.3187]
[1736135497572,7.23926376,215.72,215.65,2.64]
[1736135497872,7.23926376,215.7,215.65,2.64]
[1736135498268,7.23926376,215.7,215.68,2.3189]
[1736135498466,7.23926376,215.72,215.65,2.64]
[1736135499572,7.23926376,215.72,215.68,2.319]
[1736135502475,7.23926376,215.72,215.69,2.3189]
[1736135505175,7.23926376,215.72,215.66,2.64]
[1736135505376,7.23926376,215.72,215.7,2.3188]
[1736135516985,7.23926376,215.72,215.65,2.64]
[1736135517290,7.23926376,215.69,215.63,2.64]
[1736135517489,7.23926376,215.69,215.67,2.3191]
[1736135517989,7.23926376,215.69,215.62,2.9518]
[1736135518192,7.23926376,215.67,215.65,2.3192]